Cogmind - Beta 17.1 @@@ ROGUE MODE // 2026.08.24 @ 12:08:53 Player: Scuttle Result: Self-destructed Performance ------------- Evolutions (1) 500 Regions Visited (5) 1000 Robots Destroyed (141) 705 Value Destroyed (3659) 3659 Prototype IDs (12) 240 Alien Tech Used (0) 0 Bonus (11821) 11821 TOTAL SCORE: 17925 Bonus ------- High Alert Combat Kills 537 Follower Combat Kills 474 Prayed to X0-1V1 5000 Major X0-1V1 Interference 5600 Registered with UFD 300 Friendly Fire -90 Cogmind --------- Core Integrity 232/500 Matter 5/300 Energy 88/100 System Corruption 1% Temperature Cool (36) Movement Treading (220) Ox1 Location -9/Scraptown Parts ------- > --- POWER (1) -------- (None) > --- PROPULSION (2) --- Light Treads Improved Treads > --- UTILITY (3) ------ Large Storage Unit Improved Heavy Armor Plating > --- WEAPON (3) ------- Spread Laser Autogun Autogun > --- INVENTORY (15) --- Heavy Ion Engine Heavy Ion Engine Improved Treads Improved Heat Sink Deep Structural Scanner Experimental Targeting Computer Layered Medium Armor Plating A0-MCA's Component Scanner Improved EM Shotgun Improved EM Shotgun Scatter Rocket Array CPS Tube (2) Peak State ------------ > --- POWER ------------ Heavy Ion Engine > --- PROPULSION ------- Light Treads Improved Treads > --- UTILITY ---------- Large Storage Unit Layered Medium Armor Plating X0-1V1's Piety Tracker > --- WEAPON ----------- Improved EM Shotgun Improved EM Shotgun Heavy Assault Rifle Autogun > --- INVENTORY -------- Heavy Ion Engine Heavy Ion Engine Light Treads Improved Treads Improved Treads Experimental Targeting Computer Hardened Light Armor Plating Hardened Light Armor Plating Hardened Light Armor Plating Spread Laser Improved Medium Laser Autogun Autogun Scatter Rocket Array CPS Tube [Rating: 39] Favorites ----------- Power Heavy Ion Engine Engine Heavy Ion Engine Power Core Nuclear Core Propulsion Light Treads Treads Light Treads Utility X0-1V1's Piety Tracker Device X0-1V1's Piety Tracker Storage Large Storage Unit Protection Light Armor Plating Weapon Improved Medium Laser Energy Gun Improved Medium Laser Ballistic Gun Improved Assault Rifle Ballistic Cannon Improved Light Cannon Launcher Scatter Rocket Array Impact Weapon Mace Build | -11 -10 -9 -9 -9 -9 ------- Run | Yrd Mat Mat Sto Rec Scr Slots Evolved 2 | . . 2 . . . Power . | . . . . . . Propulsion . | . . . . . . Utility 1 | . . 1 . . . Weapon 1 | . . 1 . . . Parts Attached 97 | 5 14 37 26 2 13 Power 10 | 1 1 4 3 . 1 Engine 8 | 1 1 2 3 . 1 Core 2 | . . 2 . . . Reactor . | . . . . . . Propulsion 30 | 2 3 10 13 1 1 Treads 30 | 2 3 10 13 1 1 Leg . | . . . . . . Wheel . | . . . . . . Hover . | . . . . . . Flight . | . . . . . . Utility 24 | . 7 7 5 . 5 Device 14 | . 4 5 2 . 3 Storage 4 | . 3 1 . . . Processor . | . . . . . . Hackware . | . . . . . . Protection 6 | . . 1 3 . 2 Artifact . | . . . . . . Weapon 33 | 2 3 16 5 1 6 Energy Gun 13 | . 1 7 2 . 3 Energy Cannon . | . . . . . . Ballistic Gun 16 | 2 2 7 1 1 3 Ballistic Cannon 1 | . . 1 . . . Launcher 2 | . . . 2 . . Special Weapon . | . . . . . . Impact Weapon 1 | . . 1 . . . Slashing Weapon . | . . . . . . Piercing Weapon . | . . . . . . Special Melee Weapon . | . . . . . . Unidentified Prototypes 3 | . 1 1 1 . . Parts Lost 10 | . 2 2 3 . 3 Power 3 | . 1 1 1 . . Propulsion 2 | . . . . . 2 Utility . | . . . . . . Weapon 5 | . 1 1 2 . 1 Highest Loss Streak 3 | . 1 2 1 . 3 To Critical Strikes . | . . . . . . Average Backups 10 | . 6 10 14 15 13 Power 1 | . . . 1 2 1 Propulsion 2 | . 1 3 3 3 2 Utility 2 | . . 1 3 5 3 Weapon 4 | . 3 3 6 5 4 Tool/Special . | . . . . . . Unused Backups 21 | . 1 9 2 . 9 Power 3 | . . 1 . . 2 Propulsion 2 | . . 1 . . 1 Utility 7 | . . . 2 . 5 Weapon 8 | . 1 7 . . . Tool/Special 1 | . . . . . 1 Average Slot Usage (%) 96 | . 92 99 98 99 91 Engine 8 | . 13 4 9 10 9 Core 2 | . . 6 1 . . Treads 23 | . 28 21 21 20 21 Device 18 | . 12 21 20 20 16 Storage 10 | . 8 11 11 10 10 Energy Gun 14 | . 8 14 13 20 18 Ballistic Gun 17 | . 19 16 18 16 14 Peak Build Rating 39 | 5 19 33 37 36 39 Average Rating 24 | 3 6 28 33 35 31 On Entrance 21 | . 5 19 33 34 36 Avg Prop Armor Cover (%) 29 | . . . . . 29 Naked Turns . | . . . . . . Heaviest Build 52 | 9 20 38 43 42 52 Greatest Support 46 | 40 40 40 46 43 43 Greatest Overweight (x) 1 | . . . . . 1 Average Overweight (x) . | . . . . . . Largest Inventory Capacity 15 | 5 10 15 15 15 15 Average Capacity 11 | 5 7 10 15 15 14 Most Carried 15 | 2 10 15 15 15 15 Average Carried 10 | . 6 10 14 15 13 Final Capacity 15 | 5 10 15 15 15 15 Final Carried 15 | 2 9 15 15 15 12 Class Distribution -------------------- 55% | Gunner 28% | Mutant 15% | Scavenger-Gunner Dominant Class ---------------- Mutant | -10/Materials Gunner | -9/Materials Gunner | -9/Storage Gunner | -9/Recycling Gunner | -9/Scraptown Resources | -11 -10 -9 -9 -9 -9 ----------- Run | Yrd Mat Mat Sto Rec Scr Matter Collected 3442 | 204 532 1016 1139 59 492 Remotely . | . . . . . . Salvage Created 4686 | . 774 1552 1731 152 477 Parts 293 | . 41 112 109 9 22 Haulers Intercepted 10 | . 2 5 3 . . Recyclers Shooed 6 | . 3 . 3 . . Parts Field Recycled . | . . . . . . Retrieved Matter . | . . . . . . Parts Self-Destructed . | . . . . . . Prevented . | . . . . . . Parts Restored . | . . . . . . Kills | -11 -10 -9 -9 -9 -9 ------- Run | Yrd Mat Mat Sto Rec Scr Combat Hostiles Destroyed 100 | . 17 29 41 2 11 Guns 76 | . 16 21 35 2 2 Cannons 5 | . . 5 . . . AOE 18 | . . 3 6 . 9 Classes Destroyed 19 | . 6 6 1 . 6 Worker 6 | . 1 4 1 . . Builder 3 | . 1 2 . . . Tunneler 1 | . . 1 . . . Hauler 10 | . 2 5 3 . . Recycler 6 | . . 1 4 1 . Mechanic 1 | . . 1 . . . Operator 1 | . . 1 . . . Watcher 13 | . 3 8 2 . . Swarmer 25 | . 5 10 10 . . Grunt 40 | . 12 9 19 . . Duelist 2 | . . 1 1 . . Protector 1 | . . . 1 . . Sentry 21 | . . 9 10 2 . Bolteater 1 | . . . . . 1 Federalist 1 | . . . . . 1 Ranger 1 | . . . . . 1 Guru 1 | . . . . . 1 Scrapper 3 | . . . . . 3 Elite 2 | . . . . . 2 Thug 2 | . . . . . 2 Best Kill Streak 12 | . 5 6 12 1 10 Combat Bots Only 11 | . 5 4 11 1 10 Max Kills in Single Turn 5 | . 2 5 3 1 3 Gunslinging 1 | . 1 . 1 . . Exploded 3 | . . 3 3 . 3 Melee . | . . . . . . Uniques/NPCs Destroyed 1 | . . . . . 1 Triborg (-9/Scraptown) Combat | -11 -10 -9 -9 -9 -9 -------- Run | Yrd Mat Mat Sto Rec Scr Hostile Shots Fired 598 | . 89 174 162 8 165 Missed 172 | . 22 51 47 4 48 Hits 426 | . 67 123 115 4 117 Melee 20 | . . 5 2 . 13 Projectile 406 | . 67 118 113 4 104 Critical Strikes 12 | . . 4 2 1 5 Damage Taken 5682 | . 793 1527 1621 59 1682 Core 978 | . 140 263 362 14 199 Absorbed by Shields . | . . . . . . Ignored by Resistances 40 | . . . . . 40 Regen/Repaired (Parts) 808 | . 98 228 185 . 297 Core Remaining (%) 72 | 100 44 . . . . Volleys Fired 283 | . 81 87 95 5 15 Largest 3 | . 2 3 3 3 3 Hottest 144 | . 70 144 144 144 113 Shots Fired 730 | . 162 261 263 16 28 Gun 696 | . 162 239 256 16 23 Cannon 22 | . . 22 . . . Launcher 12 | . . . 7 . 5 Special . | . . . . . . Kinetic 464 | . 123 159 158 6 18 Thermal 252 | . 39 102 98 10 3 Explosive 12 | . . . 7 . 5 Electromagnetic 2 | . . . . . 2 Robot Hit Streak 26 | . 26 12 15 11 13 Robot Miss Streak 8 | . 8 6 7 2 2 Penetration Max . | . . . . . . Secondary Targets 11 | . 3 2 5 . 1 Max Gunslinging Chain 1 | . 1 1 1 . 1 Shots Hit Robots 467 | . 111 150 175 13 18 Core Hits 286 | . 41 74 103 10 58 Critical Kills 1 | . . . . . 1 Critical Parts Destroyed 4 | . . 1 2 . 1 Critical Strikes 19 | . 3 8 6 . 2 Burn 13 | . 3 6 4 . . Destroy 5 | . . 1 2 . 2 Blast 1 | . . 1 . . . Melee Attacks 6 | . . 6 . . . Impact 6 | . . 6 . . . Slashing . | . . . . . . Piercing . | . . . . . . Sneak Attacks . | . . . . . . Combat Hostiles . | . . . . . . Follow-up Attacks . | . . . . . . Damage Inflicted 9525 | . 1424 2899 3272 240 1690 Guns 6914 | . 1416 2259 2772 225 242 Cannons 258 | . . 178 . . 80 Explosions 2252 | . . 425 459 . 1368 Melee . | . . . . . . Ramming 101 | . 8 37 41 15 . Kinetic 4335 | . 1027 1330 1635 65 278 Thermal 3250 | . 389 1532 1137 160 32 Explosive 1827 | . . . 459 . 1368 Electromagnetic 12 | . . . . . 12 Impact . | . . . . . . Slashing . | . . . . . . Piercing . | . . . . . . Highest Corruption 16 | . 1 3 16 16 1 Average Corruption 5 | . 1 2 9 16 1 Corruption Purged . | . . . . . . Corruption Blocked . | . . . . . . Effects 110 | . 8 40 45 16 1 Message Errors 31 | . 3 9 13 5 1 Matter Fused 20 | . 1 6 9 4 . Heat Flow Errors 15 | . 1 8 3 3 . Energy Discharges 13 | . 3 5 4 1 . Parts Rejected 1 | . . . 1 . . Data Loss (minor) 11 | . . 5 5 1 . Data Loss (major) 3 | . . 1 2 . . Misfires 4 | . . 2 1 1 . Alerts 3 | . . . 2 1 . Weapon Failures 9 | . . 4 5 . . Overload Shots . | . . . . . . Overflow Damage 144 | . . 109 29 . 6 Projectiles . | . . . . . . Explosions 136 | . . 109 21 . 6 Melee 8 | . . . 8 . . Knockbacks 3 | . . 2 1 . . Impact 1 | . . . 1 . . Kinetic 2 | . . 2 . . . Secondary . | . . . . . . Self-Inflicted Damage 100 | . . . 73 . 27 Shots 3 | . . . 2 . 1 Rammed 19 | . 3 10 5 1 . Targets Rammed 20 | . 3 11 5 1 . Kicked . | . . . . . . Crushed 1 | . . 1 . . . Highest Temperature 293 | . 80 293 215 235 250 Average Temperature 52 | . 10 60 34 76 88 Received Heat Transfer 2019 | . 369 537 444 45 624 Siege Activations . | . . . . . . Martial Activations . | . . . . . . Shielding Activations . | . . . . . . Robots Disrupted . | . . . . . . Combat Hostiles . | . . . . . . Robots Corrupted . | . . . . . . Combat Hostiles . | . . . . . . Parts Fried . | . . . . . . Impact Corruptions 1 | . . . 1 . . Robots Melted 1 | . 1 . . . . Combat Hostiles 1 | . 1 . . . . Parts Melted 15 | . 2 8 5 . . Heat Transferred 7101 | . 1369 3068 2366 258 40 Parts Sabotaged . | . . . . . . Parts Stolen 2 | . . . . . 2 Parts Stripped . | . . . . . . Power Chain Reactions . | . . . . . . Alert | -11 -10 -9 -9 -9 -9 ------- Run | Yrd Mat Mat Sto Rec Scr Maximum Alert Level 3 | . . 3 3 2 . Low Security (%) 54 | 100 100 60 . . . Level 1 21 | . . 33 7 90 . Level 2 10 | . . 6 31 9 . Level 3 14 | . . . 60 . . Level 4 . | . . . . . . Level 5 . | . . . . . . High Security . | . . . . . . Max Security . | . . . . . . Peak Influence 1032 | . 135 773 1032 416 . Initial 396 | . . 52 280 396 . Average 287 | . 45 187 763 343 . Influence Increases 3638 | . 551 1571 1466 50 . Destroy 0b10 Robot/C 1800 | . 340 580 840 40 . Destroy 0b10 Robot/NC 210 | . 35 115 55 5 . Destroy Leader 500 | . 80 170 250 . . Allied During Kill 6 | . . . 6 . . Successful Hack 105 | . 18 47 35 5 . Disable Machine 150 | . . 90 60 . . Destroy Structure 83 | . 3 32 48 . . Partial Spotted 15 | . . 15 . . . Lose Combat Pursuer 135 | . 75 30 30 . . Miscellaneous 634 | . . 492 142 . . Influence Decreases 3638 | . 427 1029 1116 810 256 Entered New Map 1334 | . . 72 386 620 256 Time Decay 1595 | . 407 488 510 190 . Search Patrol Dispatched 200 | . . 200 . . . Lost Part 70 | . 20 20 30 . . Lost Ally 40 | . . . 40 . . Purge Threat 399 | . . 249 150 . . Squads Dispatched 18 | . 4 2 12 . . Investigation 3 | . 2 . 1 . . Extermination . | . . . . . . Reinforcement 9 | . 2 2 5 . . Assault 2 | . . . 2 . . Garrison 4 | . . . 4 . . Intercept . | . . . . . . Searches Triggered 2 | . . 2 . . . Construction Impeded . | . . . . . . Haulers Reinforced . | . . . . . . Active Scanning Responses . | . . . . . . Cargo Convoy Interrupts . | . . . . . . Stealth | -11 -10 -9 -9 -9 -9 --------- Run | Yrd Mat Mat Sto Rec Scr Distress Signals 10 | . 2 3 5 . . Communications Jammed . | . . . . . . Distress Signals . | . . . . . . Times Spotted 187 | . 29 59 56 2 41 Peak Tracking Total 21 | . 7 7 7 1 21 Tactical Retreats 9 | . 3 2 2 . 2 Traps | -11 -10 -9 -9 -9 -9 ------- Run | Yrd Mat Mat Sto Rec Scr Traps Triggered 4 | . 3 . 1 . . Indirectly . | . . . . . . Trap Hack Attempts . | . . . . . . Triggered . | . . . . . . Disarmed . | . . . . . . Reprogrammed . | . . . . . . Reused . | . . . . . . Traps Extracted . | . . . . . . Installed . | . . . . . . Triggered . | . . . . . . Machines | -11 -10 -9 -9 -9 -9 ---------- Run | Yrd Mat Mat Sto Rec Scr Machines Disabled 25 | . . 7 4 . 14 Max in Single Turn 4 | . . 2 2 . 4 Machines Repaired . | . . . . . . Machines Dismantled . | . . . . . . Machines Sabotaged . | . . . . . . Overloaded Fab Kills . | . . . . . . Hacking | -11 -10 -9 -9 -9 -9 --------- Run | Yrd Mat Mat Sto Rec Scr Machines Accessed 34 | . 7 13 12 1 1 Terminals 22 | . 5 9 7 1 . Fabricators . | . . . . . . Repair Stations 5 | . 1 2 2 . . Recycling Units 3 | . 1 . 2 . . Scanalyzers 2 | . . 2 . . . Garrison Access 1 | . . . 1 . . Total Hacks 120 | . 23 37 38 5 17 Successful 75 | . 13 22 22 1 17 Failed 44 | . 10 14 16 4 . Catastrophic 2 | . . . 1 1 . Database Lockouts 1 | . . 1 . . . Manual 43 | . 15 10 13 5 . Terminals 69 | . 17 25 22 5 . Fabricators . | . . . . . . Repair Stations 23 | . 4 8 11 . . Recycling Units 5 | . 2 . 3 . . Scanalyzers 4 | . . 4 . . . Garrison Access 2 | . . . 2 . . Terminal Hacks 43 | . 6 12 8 . 17 Record 17 | . . . . . 17 Part Schematic 1 | . . 1 . . . Robot Analysis 2 | . 1 1 . . . Prototype ID Bank 8 | . 4 4 . . . Open Door 3 | . . . 3 . . Branch Access Points 1 | . . 1 . . . Alert Level 3 | . . 2 1 . . Unreport Threat 3 | . . 2 1 . . Locate Traps 1 | . . . 1 . . Hauler Manifests 1 | . . 1 . . . Zone Layout 3 | . 1 . 2 . . Fabricator Hacks . | . . . . . . Repair Station Hacks 19 | . 4 6 9 . . Scan Component 10 | . 2 3 5 . . Repair 9 | . 2 3 4 . . Recycling Unit Hacks 3 | . 1 . 2 . . Retrieve Components 3 | . 1 . 2 . . Scanalyzer 2 | . . 2 . . . Retrieve Study 2 | . . 2 . . . Garrison Access Hacks . | . . . . . . Unauthorized Hacks 8 | . 2 2 3 1 . Terminals 8 | . 2 2 3 1 . Botnet 8 | . 2 2 3 1 . Fabricators . | . . . . . . Repair Stations . | . . . . . . Recycling Units . | . . . . . . Scanalyzers . | . . . . . . Garrison Access . | . . . . . . Data Cores Recovered 1 | . . 1 . . . Used 1 | . . 1 . . . Hacking Detections 25 | . 6 8 10 1 . Full Trace Events 2 | . 1 1 . . . Feedback Events 1 | . . 1 . . . Corruption 1 | . . 1 . . . Feedback Blocked . | . . . . . . Robot Schematics Acquired . | . . . . . . Robots Built . | . . . . . . Authchips . | . . . . . . Time . | . . . . . . Total Robot Build Rating . | . . . . . . Part Schematics Acquired 1 | . . 1 . . . Parts Built . | . . . . . . Authchips . | . . . . . . Time . | . . . . . . Total Part Build Rating . | . . . . . . Part Studies Acquired 2 | . . 2 . . . Parts Repaired 9 | . 2 3 4 . . Time 289 | . 52 78 159 . . Parts Recycled . | . . . . . . Recycled Matter . | . . . . . . Retrieved Matter . | . . . . . . Retrieved Components 22 | . 10 . 12 . . Parts Scanalyzed . | . . . . . . Part Schematics Acquired . | . . . . . . Parts Damaged . | . . . . . . Bothacking | -11 -10 -9 -9 -9 -9 ------------ Run | Yrd Mat Mat Sto Rec Scr Used RIF Installer . | . . . . . . Robots Hacked . | . . . . . . Non-combat . | . . . . . . Combat . | . . . . . . Robot Hacks Applied . | . . . . . . Relay Couplers Released . | . . . . . . Fabnet Peak Effective % . | . . . . . . Robots Rewired . | . . . . . . Allies Hacked . | . . . . . . Hacks Repelled . | . . . . . . Allies | -11 -10 -9 -9 -9 -9 -------- Run | Yrd Mat Mat Sto Rec Scr Total Allies 3 | . . . 2 . 1 Largest Group 2 | . . . 2 . 1 Highest-Rated Group 454 | . . . 16 . 454 Highest-Rated Ally 454 | . . . 8 . 454 Total Orders . | . . . . . . Ally Attacks 78 | . . . 14 . 64 Total Damage 3279 | . . . 126 . 3153 Kills 20 | . . . 2 . 18 Allies Corrupted . | . . . . . . Allies Melted . | . . . . . . X0-1V1 Amusement Gains 95 | . 10 5 60 . 20 Average Entertainment 21 | . 9 9 37 38 21 Good Acts 13 | . . 3 7 2 1 Bad Acts 27 | . . 15 9 2 1 Intel | -11 -10 -9 -9 -9 -9 ------- Run | Yrd Mat Mat Sto Rec Scr Active Infowar (turns) 25 | . . . . . 25 Structural 25 | . . . . . 25 Robot Analysis Total 2 | . 1 1 . . . Derelict Logs Recovered . | . . . . . . Drone Launches . | . . . . . . Drone Recoveries . | . . . . . . Exploration | -11 -10 -9 -9 -9 -9 ------------- Run | Yrd Mat Mat Sto Rec Scr Turns Passed 7381 | 67 1712 2460 1380 388 1374 Spaces Moved 3627 | 39 828 1200 495 231 834 Core 95 | 3 . . . . 92 Treads 3532 | 36 828 1200 495 231 742 Legs . | . . . . . . Wheels . | . . . . . . Hover . | . . . . . . Flight . | . . . . . . Fastest Speed 50 | 50 160 160 160 160 50 Average Speed 157 | 151 160 160 160 160 150 Slowest Speed 220 | 160 160 160 160 160 220 Overloaded Moves . | . . . . . . Propulsion Burnouts . | . . . . . . Robots Hopped . | . . . . . . Potential Cave-ins . | . . . . . . Cave-ins Triggered . | . . . . . . Exploration Rate (%) 62 | 3 89 85 80 46 71 Regions Visited 5 Branch Regions 3 Pre-discovered Areas 4 | . . . . . 4 Known Exits Taken 1 | . . 1 . . . Unknown Exits Taken 4 | 1 1 . 1 1 . Scrap Searched 2 | . . . . . 2 Spaces Dug 2 | . . 2 . . . Terrain Destroyed 144 | . . 48 43 . 53 Melee 2 | . . 2 . . . Projectile . | . . . . . . AOE 142 | . . 46 43 . 53 Terrain Rammed . | . . . . . . Walls Destroyed . | . . . . . . Machines Disabled . | . . . . . . Actions | -11 -10 -9 -9 -9 -9 --------- Run | Yrd Mat Mat Sto Rec Scr Total 4689 | 45 1051 1544 880 239 930 Wait 437 | . 104 119 212 . 2 Move 3622 | 38 827 1199 494 230 834 Hop . | . . . . . . Pick Up 81 | 2 12 30 13 . 24 Fast Attach 38 | 5 4 9 9 1 10 Attach 23 | . 2 6 5 . 10 Detach 18 | . 1 4 3 . 10 Swap 75 | . 8 33 23 1 10 Drop 85 | . 9 40 20 1 15 Fire 283 | . 81 87 95 5 15 Melee 6 | . . 6 . . . Ram . | . . . . . . Kick . | . . . . . . Crush 20 | . 3 11 5 1 . Escape Stasis . | . . . . . . Rewire 1 | . . . 1 . . Trap . | . . . . . . Miscellaneous . | . . . . . . Route ------- -11/Scrapyard -10/Materials (discovered 6 exits: *Mat x3 / [*Min x2] / [*Sub]) -9/Materials (discovered 5 exits: *Mat x3 / *Min / *Sto) -9/Storage (discovered 2 exits: Mat / *Rec) -9/Recycling (discovered 2 exits: [*Fac] / *Scr) -9/Scraptown (discovered 2 exits: *Fac x2) History --------- Turn | Location | Event 12 | -11/Scrapyard | Discovered new exit (range 15) 68 | -11/Scrapyard | Entered Materials 309 | -10/Materials | Build established: Mutant 619 | -10/Materials | Discovered new exit (range 3) 725 | -10/Materials | Discovered new exit (range 10) 883 | -10/Materials | Repaired Lgt. Treads 910 | -10/Materials | Repaired Lgt. Treads 1266 | -10/Materials | Discovered new exit (range 10) 1298 | -10/Materials | Discovered new exit (range 14) 1426 | -10/Materials | Discovered new exit (range 8) 1478 | -10/Materials | Core integrity fell below 50% 1719 | -10/Materials | Discovered new exit (range 10) 1733 | -10/Materials | Prayed at D.C.S.S. Altar Unit 1780 | -10/Materials | Entered another Materials area 1780 | -9/Materials | Evolved 2 slots: Utility x1, Weapon x1 2079 | -9/Materials | Build established: Scavenger-Gunner 2286 | -9/Materials | Discovered new exit (range 2) 2286 | -9/Materials | X0-1V1 sent you into danger 2402 | -9/Materials | X0-1V1 sent someone to keep an eye on you 2405 | -9/Materials | Repaired Lgt. Treads 2417 | -9/Materials | EM resistance permanently improved by X0-1V1 (+15%; -150 max core) 2433 | -9/Materials | Repaired Lgt. Treads 2527 | -9/Materials | Discovered new exit (range 0) 2827 | -9/Materials | Discovered new exit (range 7) 3077 | -9/Materials | Identified exit to Materials 3077 | -9/Materials | X0-1V1 revealed exit location to -8/Materials 3141 | -9/Materials | Identified exit to Mines 3141 | -9/Materials | Identified exit to Storage 3196 | -9/Materials | Build established: Gunner 3431 | -9/Materials | X0-1V1 added 0b10 threat records associated with you (major) 3516 | -9/Materials | Repaired Lgt. Treads+ 3780 | -9/Materials | Search patrols dispatched 3867 | -9/Materials | Central database locked down 4118 | -9/Materials | Discovered exit to Materials (range 16) 4137 | -9/Materials | X0-1V1 added 0b10 threat records associated with you (major) 4146 | -9/Materials | X0-1V1 sent hostile G-34 Mercenary (x4) 4180 | -9/Materials | Search patrols dispatched 4240 | -9/Materials | Entered Storage 4317 | -9/Storage | Garrison activated, responded to threat 4321 | -9/Storage | Core integrity fell below 50% 4535 | -9/Storage | Repaired Imp. Assault Rifle 4575 | -9/Storage | Repaired Imp. Heat Sink 4597 | -9/Storage | X0-1V1 added 0b10 threat records associated with you (minor) 4614 | -9/Storage | X0-1V1 announced a LAN party 4626 | -9/Storage | Core integrity permanently improved by X0-1V1 (+300) 4640 | -9/Storage | First assault squad dispatched 4738 | -9/Storage | Core integrity restored by X0-1V1 (+132) 4766 | -9/Storage | X0-1V1 vaporized surrounding terrain (radius 21) 4773 | -9/Storage | Garrison activated, responded to threat 4877 | -9/Storage | Destroyed 11 combat bots 4879 | -9/Storage | System corruption reached 10% 4994 | -9/Storage | X0-1V1 sent allied G-34 Mercenary (x2) 5092 | -9/Storage | Found Prototype Launcher 5092 | -9/Storage | Identified Scatter Rocket Array 5130 | -9/Storage | Discovered exit to Materials (range 15) 5372 | -9/Storage | Found Prototype Processor 5486 | -9/Storage | Repaired Imp. Treads 5523 | -9/Storage | X0-1V1 vaporized surrounding terrain (radius 24) 5525 | -9/Storage | Repaired Imp. Heat Sink 5614 | -9/Storage | Used back door to open Recycling access 5614 | -9/Storage | Discovered new exit (range 5) 5620 | -9/Storage | Entered Recycling 5739 | -9/Recycling | Weapon slot count temporarily expanded by X0-1V1 (+1) 5895 | -9/Recycling | Discovered new exit (range 14) 5930 | -9/Recycling | Ranged accuracy permanently improved by X0-1V1 (+5%; -50 max core) 5972 | -9/Recycling | Scanned before Scraplab entrance 5994 | -9/Recycling | Entered Scraplab 6007 | -9/Recycling | Discovered new exit (range 2) 6008 | -9/Recycling | Entered Scraptown 6008 | -9/Scraptown | System corruption cleaned by C-Scrubber 6394 | -9/Scraptown | Weapon slot count reverted to normal (-1) 6468 | -9/Scraptown | Discovered new exit (range 11) 6602 | -9/Scraptown | Visited CR-KLE's Repair Center 6621 | -9/Scraptown | CR-KLE repaired 4 parts 6687 | -9/Scraptown | Visited UFD Registry 6687 | -9/Scraptown | Registered with UFD as "Thermothruster" 6738 | -9/Scraptown | Visited Cartography Club 6814 | -9/Scraptown | Found Deep Structural Scanner 6825 | -9/Scraptown | Learned location of Proximity Caves (-3) 6825 | -9/Scraptown | Learned location of Archives (-4) 6825 | -9/Scraptown | Learned location of Testing (-2) 6825 | -9/Scraptown | Learned 16 Research zone layouts 6825 | -9/Scraptown | Learned 4 Mines zone layouts 6825 | -9/Scraptown | Learned 12 Lower Caves zone layouts 6825 | -9/Scraptown | Learned 8 Upper Caves zone layouts 6825 | -9/Scraptown | Learned 16 Proximity Caves zone layouts 6825 | -9/Scraptown | Learned 4 Hub_04(d) zone layouts 6825 | -9/Scraptown | Learned Research emergency access door positions 6825 | -9/Scraptown | Learned location of 3 exits from Factory 6825 | -9/Scraptown | Learned location of 2 exits from Research 6825 | -9/Scraptown | Learned location of 1 exit from Proximity Caves 6825 | -9/Scraptown | Identified exit to Factory 6929 | -9/Scraptown | Visited A0-MCA Data Center 6939 | -9/Scraptown | Given an A- rating by A0-MCA 6943 | -9/Scraptown | Found A0-MCA's Component Scanner 6977 | -9/Scraptown | Visited Botcube Research 7000 | -9/Scraptown | Visited Modified Component R&D 7071 | -9/Scraptown | Visited Scrapoid Research Area 7169 | -9/Scraptown | Visited Junk Repository 7238 | -9/Scraptown | Visited Shadow of the Wyrm 7252 | -9/Scraptown | X0-1V1 brought Wyrm Statue to life 7252 | -9/Scraptown | Attacked by Scraptown defenders 7252 | -9/Scraptown | X0-1V1 sent you into danger 7270 | -9/Scraptown | Allies destroyed Triborg 7296 | -9/Scraptown | Core integrity fell below 20% 7306 | -9/Scraptown | X0-1V1 rescued you from certain death 7331 | -9/Scraptown | Lost 3 parts (2n1w) 7343 | -9/Scraptown | Destroyed 10 combat bots 7382 | -9/Scraptown | Self-destructed Last Messages --------------- The surroundings shift and blur. 07322_ UY-LCI(E) destroyed. 07340_ Machine disabled. 07344_ The unstable cave ceiling collapses. 07344_ 5I-U44(j) destroyed. 07344_ Destroyed Ripteeth. 07344_ Machine disabled. 07344_ Destroyed Ripteeth. 07344_ Slug penetrates Machine. 07348_ Penetrated by Slug. 07348_ Slug penetrates Wall. 07348_ Penetrated by Slug. 07348_ Slug penetrates Wall. 07351_ EL-VQN(j): "Scrapalicious!" 07360_ Acquired Spread Laser. 07363_ Optimus: "Hey you're that new member, I knew your registry entry had something suspicious about it!" 07370_ HK-TQZ(E): "We are one!" 07373_ J 3WRJBBQQY,%EKOMFXSGVXWCZ 8E